Cogmind - Beta 15 @@@ ROGUE MODE // 2025.06.06 @ 21:22:49 Player: CrossedViper Result: Heading to fleet! Performance ------------- Evolutions (9) 4500 Regions Visited (23) 4600 Robots Destroyed (736) 3680 Value Destroyed (40706) 40706 Prototype IDs (129) 2580 Alien Tech Used (5) 1000 Bonus (38049) 38049 TOTAL SCORE: 95115 Bonus ------- Triggered High Security 2000 High Alert Combat Kills 19143 Follower Combat Kills 1346 Met Zhirov 300 Met Warlord at Base 500 MAIN.C Attacked Warlord 500 Warlord Defense Kills 6718 Used Core Reset Matrix 3000 Met Warlord at Research 2000 Scanned by Researcher 500 Win 3000 Friendly Fire -958 Cogmind --------- Core Integrity 1005/1600 Matter 300/300 Energy 2743/2745 System Corruption 20% Temperature Cool (9) Movement Treading (87) Location To Fleet Rendezvous Parts ------- > --- POWER (4) -------- Multi-Quantum Reactor > --- PROPULSION (8) --- Treaded Armored-Biometal Exoskeleton > --- UTILITY (9) ------ Armored Scrap Engine Concept Antigrav Storage Unit Experimental Optical Array Concept Countertargeting System Concept Weapon Articulator Experimental Core Analyzer Concept Hardlight Director Concept Impact Drone Bay (0/6) > --- WEAPON (4) ------- Hpw. EM Gamma Construct/G > --- INVENTORY (25) --- Experimental Biometal Medium Treads Enhanced Biometal Leg Concept Thermoelectric Network Concept Chromion Battery (800) Concept Networked Targeting System Experimental Core Analyzer Experimental Kinecellerator Experimental EM Disruption Field Hacking Suite System Shield Concept Matter Streamer Transdimensional Reconstructor Peak State ------------ > --- POWER ------------ Multi-Quantum Reactor > --- PROPULSION ------- Experimental Biometal Medium Treads Treaded Armored-Biometal Exoskeleton Experimental Surge Thruster > --- UTILITY ---------- Armored Scrap Engine Concept Thermoelectric Network Concept Antigrav Storage Unit Experimental Core Analyzer Concept Navigation Harness > --- WEAPON ----------- Enhanced Hardcell Cannon Hpw. EM Gamma Construct/G > --- INVENTORY -------- Light Quantum Reactor Hybrid Graviton Reactor Experimental Biometal Medium Treads Experimental Biometal Medium Treads Experimental Biometal Medium Treads Experimental Biometal Medium Treads Heavy Shield Leg Experimental Antigrav System Concept Thermoelectric Network Concept Chromion Battery Concept Countertargeting System Concept Networked Targeting System Concept Weapon Articulator Experimental Kinecellerator Experimental EM Disruption Field Concept Hardlight Director Concept Matter Streamer Concept Impact Drone Bay Transdimensional Reconstructor Transdimensional Reconstructor Subatomic Replicator Concept XC Strikerail Concept XC Strikerail [Rating: 243] Favorites ----------- Power Constructs Engine Deuterium Engine Power Core Improved Fusion Compressor Reactor Constructs Propulsion Constructs Treads Constructs Leg Cargo Legs Hover Unit Experimental Antigrav System Flight Unit Experimental Surge Thruster Utility Armored Scrap Engine Device Armored Scrap Engine Storage Huge Storage Unit Processor Experimental Core Analyzer Hackware Experimental System Shield Protection Scrap Shield Weapon Constructs Energy Gun Constructs Energy Cannon Advanced Beam Cannon Ballistic Gun Improved Assault Rifle Ballistic Cannon Battle Cannon Launcher Concept Rapid Grenade Launcher Impact Weapon Heavy Flail Slashing Weapon Experimental Terror Saw Build | -11 -10 -10 -10 -8 -8 -8 -6 -5 -5 -5 -5 -4 -4 -4 -4 -4 -3 -3 -3 -3 -2 -1 -1 ------- Run | Yrd Mat Min Sub Mat Sto Rec Fac Fac Upp Upp War Pro Fac Upp Upp Zhi Pro Res Qua Frg Res Acc Com Slots Evolved 18 | . . . . 4 . . 4 2 . . . . 2 . . . . 2 . . 2 2 . Power 3 | . . . . . . . 1 . . . . . . . . . . . . . 2 . . Propulsion 6 | . . . . 4 . . . 1 . . . . . . . . . 1 . . . . . Utility 7 | . . . . . . . 2 1 . . . . 2 . . . . . . . . 2 . Weapon 2 | . . . . . . . 1 . . . . . . . . . . 1 . . . . . Parts Attached 156 | 6 . 1 7 14 19 8 6 5 2 . 7 1 9 1 . 3 . 5 3 42 8 4 5 Power 13 | 1 . . . 1 2 . . . . . 1 . 1 . . 1 . . . 2 2 . 2 Engine 3 | 1 . . . 1 1 . . . . . . . . . . . . . . . . . . Core 1 | . . . . . . . . . . . . . . . . . . . . . . . 1 Reactor 9 | . . . . . 1 . . . . . 1 . 1 . . 1 . . . 2 2 . 1 Propulsion 36 | 2 . . 1 6 11 6 1 . . . . 1 . . . 1 . . . 3 4 . . Treads 19 | 2 . . . 4 8 4 . . . . . . . . . . . . . . 1 . . Leg 7 | . . . 1 2 . 1 . . . . . . . . . 1 . . . 1 1 . . Wheel . | . . . . . . . . . . . . . . . . . . . . . . . . Hover 3 | . . . . . 1 . . . . . . 1 . . . . . . . . 1 . . Flight 7 | . . . . . 2 1 1 . . . . . . . . . . . . 2 1 . . Utility 75 | 1 . . 1 3 2 1 2 5 2 . 6 . 8 1 . 1 . 4 3 28 . 4 3 Device 47 | . . . . 1 . 1 2 4 2 . 2 . 4 1 . 1 . 2 3 20 . 3 1 Storage 6 | 1 . . . 1 1 . . . . . 1 . . . . . . . . 2 . . . Processor 12 | . . . . . . . . 1 . . 3 . 3 . . . . . . 3 . . 2 Hackware 4 | . . . . . . . . . . . . . 1 . . . . 2 . 1 . . . Protection 6 | . . . 1 1 1 . . . . . . . . . . . . . . 2 . 1 . Artifact . | . . . . . . . . . . . . . . . . . . . . . . . . Weapon 32 | 2 . 1 5 4 4 1 3 . . . . . . . . . . 1 . 9 2 . . Energy Gun 7 | 1 . . . 4 1 . . . . . . . . . . . . 1 . . . . . Energy Cannon 6 | . . . 1 . 2 . 2 . . . . . . . . . . . . 1 . . . Ballistic Gun 5 | 1 . . 2 . 1 . . . . . . . . . . . . . . 1 . . . Ballistic Cannon 3 | . . . 1 . . . . . . . . . . . . . . . . 1 1 . . Launcher 8 | . . 1 1 . . 1 . . . . . . . . . . . . . 4 1 . . Special Weapon . | . . . . . . . . . . . . . . . . . . . . . . . . Impact Weapon 1 | . . . . . . . 1 . . . . . . . . . . . . . . . . Slashing Weapon 2 | . . . . . . . . . . . . . . . . . . . . 2 . . . Piercing Weapon . | . . . . . . . . . . . . . . . . . . . . . . . . Special Melee Weapon . | . . . . . . . . . . . . . . . . . . . . . . . . Unidentified Prototypes 50 | . . . . 2 9 1 3 . . . 6 1 1 . . 4 . 3 1 14 3 . 2 Parts Lost 32 | . . . . 3 2 1 2 1 . . 1 . . . . . 1 1 . 16 . . 4 Power 8 | . . . . 1 1 . . 1 . . 1 . . . . . 1 . . 3 . . . Propulsion 3 | . . . . . 1 1 . . . . . . . . . . . . . 1 . . . Utility 10 | . . . . 1 . . 2 . . . . . . . . . . 1 . 5 . . 1 Weapon 11 | . . . . 1 . . . . . . . . . . . . . . . 7 . . 3 Highest Loss Streak 4 | . . . . 2 1 1 1 1 . . 1 . . . . . 1 1 . 1 . . 4 To Critical Strikes 3 | . . . . . . . . . . . . . . . . . . . . 3 . . . Average Backups 16 | . 2 8 5 12 24 5 15 21 19 17 21 22 22 23 23 22 22 21 22 22 22 14 13 Power 1 | . . . . 1 2 . 2 1 1 . 1 2 1 1 1 1 1 1 1 1 1 . . Propulsion 3 | . 1 3 2 7 17 3 6 3 . . 3 4 2 2 2 1 . . . 1 6 3 1 Utility 7 | . . 1 1 1 2 1 2 5 6 7 7 9 12 15 15 16 17 15 16 13 10 7 9 Weapon 3 | . . 3 1 2 2 1 4 10 12 9 8 6 5 5 4 3 2 2 2 4 1 . . Tool/Special . | . . . . . . . . . . . . . . . . . . . . . . . . Unused Backups 138 | . . . 4 3 9 16 12 16 . 6 6 2 8 1 2 2 1 4 1 21 10 3 11 Power 12 | . . . . . . 1 . 1 . 1 1 . . 1 . . . . . 6 . . 1 Propulsion 67 | . . . 1 . 8 14 10 12 . . . 1 4 . . 2 . 3 . 3 4 2 3 Utility 19 | . . . 1 1 . . . . . . 1 . 1 . . . . . 1 7 1 . 6 Weapon 37 | . . . 2 2 1 1 2 3 . 5 4 1 3 . 2 . 1 . . 5 4 1 . Tool/Special 3 | . . . . . . . . . . . . . . . . . . 1 . . 1 . 1 Average Slot Usage (%) 49 | . 85 85 80 68 94 48 38 38 41 41 41 41 48 47 47 50 47 41 41 43 38 38 42 Engine 4 | . 14 14 13 6 8 8 5 5 5 5 . . . . . . . . . . . . . Reactor 1 | . . . . . . . . . . . . . 3 5 5 8 5 4 4 3 4 4 4 Treads 8 | . 28 28 24 11 48 13 1 1 3 5 4 . . 5 5 2 . 3 . . . . 3 Leg 1 | . . . 1 21 1 . 2 3 1 . . . 1 . . 2 4 . . . . 4 . Device 10 | . . . . 6 8 8 11 14 17 17 13 11 13 10 10 10 10 8 8 14 13 18 16 Storage 4 | . 14 14 1 4 8 1 4 5 5 5 5 5 5 5 5 5 5 4 4 4 4 4 4 Processor 4 | . . . . . . . . . . . 2 5 10 15 15 15 15 14 14 6 4 4 10 Energy Gun 1 | . 14 . . 12 2 3 . . . . . . . . . . . . . . . . . Energy Cannon 2 | . . . 1 . 11 2 2 . . 3 5 3 . . . . . 4 4 2 . . 1 Ballistic Gun 1 | . 14 14 8 1 3 4 . . . . . . . . . . . . . . . . . Ballistic Cannon 2 | . . . 9 1 . . 3 5 5 1 . 1 5 5 5 5 4 . . . 4 4 1 Launcher 1 | . . 13 8 . . 1 . . . . . . . . . . . . . 1 . . . Peak Build Rating 243 | 6 6 6 27 47 46 41 83 98 97 96 123 134 155 135 134 147 148 154 150 228 243 236 222 Average Rating 100 | 4 6 6 12 41 30 34 62 85 95 93 104 123 144 134 132 140 138 141 148 183 224 227 209 On Entrance 100 | . 6 6 6 27 43 30 38 74 97 96 93 123 131 135 133 132 146 129 149 150 215 217 224 Naked Turns . | . . . . . . . . . . . . . . . . . . . . . . . . Heaviest Build 169 | 14 14 15 35 94 100 101 109 117 117 117 113 111 130 121 121 133 137 131 137 146 150 169 142 Greatest Support 452 | 40 40 40 55 87 122 122 96 122 187 187 252 252 244 225 225 255 281 281 273 452 445 302 243 Greatest Overweight (x) 44 | . . . . 4 4 6 1 1 . . . . . . . . . . . . 44 . . Average Overweight (x) . | . . . . . . 2 . . . . . . . . . . . . . . . . . Largest Inventory Capacity 25 | 8 8 8 8 25 25 25 25 25 25 25 25 25 25 25 25 25 25 25 25 25 25 25 25 Average Capacity 19 | 6 8 8 5 17 25 7 21 25 25 25 25 25 25 25 25 25 25 25 25 25 25 25 25 Most Carried 25 | . 8 8 8 25 25 25 23 25 21 21 25 25 25 25 25 25 25 25 25 25 25 19 15 Average Carried 16 | . 2 7 5 12 24 5 15 21 19 17 22 24 23 24 24 24 24 23 24 23 23 14 13 Final Capacity 25 | 8 8 8 5 25 25 5 25 25 25 25 25 25 25 25 25 25 25 25 25 25 25 25 25 Final Carried 25 | . 8 8 5 25 25 5 23 20 21 15 25 23 25 25 25 25 24 21 25 22 20 11 12 Scrap Engine Consumption 419 | . . . . . . 89 41 20 4 9 11 4 17 2 2 5 10 15 4 116 40 15 15 Constructs Created 8 | . . . . . . 3 . . . . . . . . . . 1 . . 3 . . 1 Constructs Modified 183 | . . . . . . 37 17 9 2 4 5 3 8 2 . 3 4 8 2 51 17 6 5 Class Distribution -------------------- 67% | Construct 16% | Mutant 6% | Generator-Construct 5% | Alien-Construct Dominant Class ---------------- Mutant | -10/Materials Mutant | -10/Mines Mutant | -10/Subcaves Mutant | -8/Materials Mutant | -8/Storage Construct | -8/Recycling Construct | -6/Factory Construct | -5/Factory Construct | -5/Upper Caves Construct | -5/Upper Caves Construct | -5/Warlord Construct | -4/Proximity Caves Construct | -4/Factory Construct | -4/Upper Caves Construct | -4/Upper Caves Construct | -4/Zhirov Construct | -3/Proximity Caves Construct | -3/Research Construct | -3/Quarantine Construct | -3/Protoforge Generator-Construct | -2/Research Generator-Construct | -1/Access Generator-Construct | -1/Command Resources | -11 -10 -10 -10 -8 -8 -8 -6 -5 -5 -5 -5 -4 -4 -4 -4 -4 -3 -3 -3 -3 -2 -1 -1 ----------- Run | Yrd Mat Min Sub Mat Sto Rec Fac Fac Upp Upp War Pro Fac Upp Upp Zhi Pro Res Qua Frg Res Acc Com Matter Collected 9059 | 222 98 80 574 404 368 373 89 35 59 20 109 10 269 44 20 . 448 924 440 3573 508 141 251 Remotely . | . . . . . . . . . . . . . . . . . . . . . . . . Salvage Created 40712 | . 202 84 460 1527 1502 893 2049 1476 677 505 3344 365 3164 509 364 . 835 1855 1249 14678 2259 944 1771 Parts 1780 | . 14 1 23 77 77 66 88 63 27 21 143 17 161 17 11 . 43 83 67 549 93 43 96 Haulers Intercepted 21 | . 1 . . 3 5 . 3 2 . . . . 1 . . . . . 1 . 4 1 . Recyclers Shooed 10 | . 3 . . 4 2 . 1 . . . . . . . . . . . . . . . . Parts Field Recycled . | . . . . . . . . . . . . . . . . . . . . . . . . Retrieved Matter . | . . . . . . . . . . . . . . . . . . . . . . . . Parts Self-Destructed 136 | . . . 13 . . . . . 24 17 . 17 . 17 11 . 37 . . . . . . Prevented . | . . . . . . . . . . . . . . . . . . . . . . . . Kills | -11 -10 -10 -10 -8 -8 -8 -6 -5 -5 -5 -5 -4 -4 -4 -4 -4 -3 -3 -3 -3 -2 -1 -1 ------- Run | Yrd Mat Min Sub Mat Sto Rec Fac Fac Upp Upp War Pro Fac Upp Upp Zhi Pro Res Qua Frg Res Acc Com Combat Hostiles Destroyed 627 | . 6 5 16 23 22 8 29 15 11 9 58 6 38 7 6 . 13 24 14 246 30 14 27 Melee 1 | . . . . . . . . . . . . . . . . . . . . . 1 . . Guns 58 | . 6 . 3 22 6 3 1 . . . . . . . . . . . . 17 . . . Cannons 389 | . . . 6 1 14 4 25 14 11 9 58 6 38 6 6 . 13 24 14 72 27 14 27 AOE 136 | . . 5 7 . . . 1 1 . . . . . . . . . . . 120 2 . . Classes Destroyed 35 | . 3 3 3 4 1 1 2 . 1 . 6 2 2 . . . . . . 6 . 1 . Worker 28 | . . . . 5 8 . 1 3 . . . . 8 . . . . 2 . . 1 . . Builder 26 | . . . . . . 14 3 2 . . . . . . . . . 3 . 4 . . . Tunneler 3 | . . 1 . . . . 1 . . . . . 1 . . . . . . . . . . Hauler 21 | . 1 . . 3 5 . 3 2 . . . . 1 . . . . . 1 . 4 1 . Recycler 12 | . . 1 . 2 2 1 1 2 . . . . 2 . . . . 1 . . . . . Carrier 2 | . . . . . . . . . . . . . . . . . . . . 2 . . . Minesweeper 1 | . . . . . . . . . . . . 1 . . . . . . . . . . . Mechanic 16 | . . . . 1 . . . . . . . . . . . . . . . 15 . . . Operator 6 | . . . . . 1 . . . . . . . 1 . . . . 1 2 . . . 1 Drone 10 | . . . . . . . . . . . . 2 . . . . . . . 8 . . . Watcher 26 | . . . . 3 . . 3 4 . . . . 8 . . . . 3 2 1 1 . 1 Swarmer 82 | . 3 . 3 3 7 . 6 5 3 4 3 . 8 . 2 . 5 9 . 2 7 4 8 Cutter 3 | . . . . . . . . . . . . . . . . . . . . . . . 3 Saboteur 15 | . . . . . . . . . . . 6 . . . . . . . . 7 2 . . Grunt 225 | . 3 . 3 13 7 . 13 2 6 3 19 4 13 3 3 . 3 5 9 95 13 1 7 Brawler 35 | . . . . . . . 1 . 1 1 6 . . . . . . 2 . 23 1 . . Duelist 26 | . . . . . . . . . . . 1 . . 1 . . 1 . . 21 1 . 1 Protector 14 | . . . . . . . . . . . 7 . . . . . . . . 7 . . . Researcher 4 | . . . . . . . . . . . . . . . . . . . . 4 . . . Sentry 59 | . . . 1 5 8 1 5 2 1 1 . . 5 1 1 . 1 4 . 17 2 1 3 Demolisher 1 | . . . . . . . . . . . 1 . . . . . . . . . . . . Specialist 3 | . . . . . . . . . . . . . . . . . . . . . . 3 . Hunter 25 | . . . . 2 . . . 2 . . 5 . 2 2 . . 2 2 . 6 . 2 . Programmer 58 | . . . . . . . 4 4 . . 5 . 8 . . . . 2 5 23 1 3 3 Heavy 1 | . . . . . . . . . . . . . 1 . . . . . . . . . . Behemoth 2 | . . . . . . . . . . . . . 1 . . . 1 . . . . . . Enhanced Demolisher 1 | . . . . . . . . . . . 1 . . . . . . . . . . . . Hotshot 3 | . . . . . . . . . . . . . . . . . . . . 3 . . . Decapitator 12 | . . . . . . . . . . . . . . . . . . . . 12 . . . Immortal 4 | . . . . . . . . . . . . . . . . . . . . 4 . . . Investigator 2 | . . . . . . . . . . . . . . . . . . . . 1 1 . . Striker 4 | . . . . . . . . . . . 1 . . . . . . . . . 3 . . Executioner 10 | . . . . . . . . . . . 4 . . . . . . . . 4 . . 2 Alpha 7 2 | . . . . . . . . . . . . . . . . . . . . 2 . . . V-Series 12 | . . . . . . . . . . . . . . . . . . . . 12 . . . Artisan 2 | . . . 2 . . . . . . . . . . . . . . . . . . . . Subdweller 16 | . . . 9 . . 7 . . . . . . . . . . . . . . . . . Samaritan 3 | . . . . . . . . . 2 1 . . . . . . . . . . . . . Tinkerer 1 | . . . . . . . . . . . . . . . . . . . . 1 . . . Assembled 5 | . . 5 . . . . . . . . . . . . . . . . . . . . . Best Kill Streak 37 | . 3 5 3 5 14 2 7 13 7 8 17 5 15 5 6 . 6 6 6 37 11 4 9 Combat Bots Only 33 | . 3 4 3 4 5 2 3 9 7 8 17 5 6 5 6 . 6 5 6 33 7 4 9 Max Kills in Single Turn 4 | . 2 2 1 2 2 1 4 2 1 1 2 2 2 1 1 . 1 2 1 4 2 1 1 Gunslinging . | . . . . . . . . . . . . . . . . . . . . . . . . Exploded 4 | . . 2 1 . . . 1 1 . . . . . . . . . . . 4 2 . . Melee 1 | . . . . . . . . . . . . . . . . . . . . . 1 . . Uniques/NPCs Destroyed 1 | . . . . . 1 . . . . . . . . . . . . . . . . . . 01-MTF (-8/Storage) Combat | -11 -10 -10 -10 -8 -8 -8 -6 -5 -5 -5 -5 -4 -4 -4 -4 -4 -3 -3 -3 -3 -2 -1 -1 -------- Run | Yrd Mat Min Sub Mat Sto Rec Fac Fac Upp Upp War Pro Fac Upp Upp Zhi Pro Res Qua Frg Res Acc Com Hostile Shots Fired 3377 | . 22 1 39 128 121 28 294 85 41 32 115 6 124 16 31 . 50 90 109 911 213 299 622 Missed 1115 | . 10 . 14 38 34 8 103 34 11 6 39 1 49 7 4 . 14 27 42 303 92 99 180 Hits 2262 | . 12 1 25 90 87 20 191 51 30 26 76 5 75 9 27 . 36 63 67 608 121 200 442 Melee 33 | . . . . . . . . . 1 1 1 . . 1 . . . . . 12 1 2 14 Projectile 2229 | . 12 1 25 90 87 20 191 51 29 25 75 5 75 8 27 . 36 63 67 596 120 198 428 AOE 33 | . . 2 . . . . . 1 . . 7 . . . . . . . . 21 . . 2 Critical Strikes 126 | . . . 1 6 2 1 6 1 . 1 6 . 4 1 1 . 4 1 7 53 6 5 20 Part Disruptions 3 | . . . . . . . . 1 . . . . . . . . . . . 2 . . . Damage Taken 41727 | . 110 146 503 1318 1016 458 2472 884 558 434 2051 98 1927 224 504 . 828 1359 1567 15179 2856 2244 4991 Core 3608 | . 33 96 84 139 131 19 367 129 18 14 328 16 72 18 39 . 58 77 67 1141 167 136 459 Absorbed by Shields 9546 | . . . . . . . . . . . 353 . . . . . . . . 1948 . 1797 5448 Ignored by Resistances 1284 | . . . . . . . . . . . . . . . . . . . . 646 114 383 141 Regen/Repaired (Parts) 21621 | . . . . . . 10 1630 583 409 480 1198 341 927 . 21 431 772 891 344 8925 2099 1409 1151 Core Remaining (%) 55 | 100 . . 14 . . 47 56 . . . . 49 . . . . 83 . . 1 88 . 62 Volleys Fired 1888 | . 20 12 58 114 84 101 132 49 29 19 196 13 139 22 30 . 33 72 48 499 80 53 85 Largest 4 | . 2 1 2 2 2 2 1 1 1 1 1 1 1 1 1 . 1 1 1 4 1 1 1 Hottest 359 | . 70 30 110 122 136 91 128 108 108 108 108 108 108 108 108 . 108 108 108 359 285 285 125 Shots Fired 2189 | . 39 12 102 221 165 135 132 49 29 19 196 13 139 22 30 . 33 72 48 515 80 53 85 Gun 538 | . 39 . 37 195 61 90 8 . . . . . . . . . . . . 105 3 . . Cannon 1502 | . . . 47 26 104 44 124 49 29 19 196 13 139 22 30 . 33 72 48 292 77 53 85 Launcher 149 | . . 12 18 . . 1 . . . . . . . . . . . . . 118 . . . Special . | . . . . . . . . . . . . . . . . . . . . . . . . Kinetic 1268 | . 20 . 78 59 46 54 64 49 29 19 196 13 139 22 30 . 33 72 18 187 44 53 43 Thermal 696 | . 19 . 6 161 118 51 60 . . . . . . . . . . . 30 176 33 . 42 Explosive 106 | . . 12 18 . . . . . . . . . . . . . . . . 76 . . . Electromagnetic 89 | . . . . 1 1 30 8 . . . . . . . . . . . . 49 . . . Entropic 30 | . . . . . . . . . . . . . . . . . . . . 27 3 . . Robot Hit Streak 43 | . 16 3 8 9 9 12 15 6 7 5 38 8 13 6 11 . 5 7 7 43 11 11 19 Robot Miss Streak 9 | . 3 2 2 5 9 4 5 5 5 2 3 1 3 2 3 . 2 4 3 5 3 2 2 Penetration Max 1 | . . . . . . . . 1 1 1 1 1 1 . . . 1 1 . 1 1 . . Secondary Targets 2 | . 1 . . 1 . . . . . . . . . . . . . . . . . . . Max Gunslinging Chain 1 | . 1 . . 1 . . . . . . . . . . . . . . . . . . . Shots Hit Robots 1365 | . 26 2 43 115 91 91 112 38 22 17 92 6 88 9 20 . 21 43 31 351 50 32 65 Core Hits 1131 | . 11 14 25 57 47 29 62 35 11 9 62 5 54 5 6 . 16 27 19 558 33 15 31 Critical Kills 17 | . . . . . 3 1 . . . . 2 . 5 . . . . 5 . . 1 . . Critical Parts Destroyed 18 | . 1 . . 1 . . . . . . 4 1 1 . 1 . 1 2 . 5 1 . . Critical Strikes 62 | . 2 . 1 15 3 1 . . . . 7 1 6 . 1 . 1 7 . 9 2 3 3 Burn 14 | . 1 . . 11 . . . . . . . . . . . . . . . 2 . . . Meltdown 4 | . . . . . 3 1 . . . . . . . . . . . . . . . . . Destroy 32 | . 1 . . 1 . . . . . . 7 1 6 . 1 . 1 7 . 5 2 . . Blast 10 | . . . 1 3 . . . . . . . . . . . . . . . . . 3 3 Sever 2 | . . . . . . . . . . . . . . . . . . . . 2 . . . Melee Attacks 9 | . . . . . . . 6 . . . . . . . . . . . . 3 . . . Impact 6 | . . . . . . . 6 . . . . . . . . . . . . . . . . Slashing 3 | . . . . . . . . . . . . . . . . . . . . 3 . . . Piercing . | . . . . . . . . . . . . . . . . . . . . . . . . Sneak Attacks . | . . . . . . . . . . . . . . . . . . . . . . . . Combat Hostiles . | . . . . . . . . . . . . . . . . . . . . . . . . Follow-up Attacks . | . . . . . . . . . . . . . . . . . . . . . . . . Damage Inflicted 144921 | . 373 493 1315 2580 2037 1615 5141 3030 2011 1605 14837 712 10160 850 1871 . 1984 4960 3210 68040 6519 3889 7689 Guns 8962 | . 371 . 278 2253 677 873 91 . . . . . . . . . . . . 4419 . . . Cannons 99217 | . . . 453 327 1305 742 4585 2767 2011 1605 14837 712 9878 850 1871 . 1984 4864 3210 29730 6343 3638 7505 Explosions 36361 | . . 493 584 . . . 376 263 . . . . 282 . . . . 96 . 33745 176 251 95 Melee 217 | . . . . . . . 71 . . . . . . . . . . . . 146 . . . Ramming 164 | . 2 . . . 55 . 18 . . . . . . . . . . . . . . . 89 Kinetic 69235 | . 201 . 676 755 477 583 2474 2767 2011 1605 14837 712 9878 850 1871 . 1984 4864 1298 10050 4056 3638 3648 Thermal 39647 | . 170 . 55 1812 1505 758 2487 . . . . . 282 . . . . . 1912 24000 2463 251 3952 Explosive 24690 | . . 493 584 . . . . . . . . . . . . . . 96 . 23517 . . . Electromagnetic 9902 | . . . . 13 . 274 91 263 . . . . . . . . . . . 9261 . . . Impact 71 | . . . . . . . 71 . . . . . . . . . . . . . . . . Slashing 146 | . . . . . . . . . . . . . . . . . . . . 146 . . . Piercing . | . . . . . . . . . . . . . . . . . . . . . . . . Entropic 1066 | . . . . . . . . . . . . . . . . . . . . 1066 . . . Highest Corruption 43 | . . . . . . 1 4 5 5 5 5 1 2 2 2 2 2 6 6 43 1 15 20 Average Corruption 5 | . . . . . . 1 2 2 5 5 1 1 1 2 2 2 2 4 4 15 1 8 16 Corruption Purged 11 | . . . . . . . . . . . . . . . . . . . 6 5 . . . Corruption Blocked . | . . . . . . . . . . . . . . . . . . . . . . . . Effects 355 | . . . . . . 32 12 6 20 9 3 . 15 5 9 2 12 7 15 174 1 9 24 Message Errors 100 | . . . . . . 9 6 2 5 2 1 . 5 2 2 1 4 3 6 42 . . 10 Matter Fused 95 | . . . . . . 15 1 1 1 2 1 . 6 1 . 1 6 2 3 41 . 5 9 Heat Flow Errors 45 | . . . . . . 5 2 . 3 . 1 . 1 1 4 . . 1 2 20 1 2 2 Energy Discharges 35 | . . . . . . 2 1 1 5 1 . . 1 . . . 2 . 2 18 . 1 1 Parts Rejected 6 | . . . . . . . . . . 1 . . . . . . . . 1 3 . 1 . Parts Fused 3 | . . . . . . . . 1 . . . . . . . . . . . 2 . . . Data Loss (minor) 28 | . . . . . . . 2 1 2 2 . . 2 1 2 . . . . 15 . . 1 Data Loss (major) 12 | . . . . . . 1 . . 2 1 . . . . . . . 1 1 6 . . . Misfires 6 | . . . . . . . . . . . . . . . . . . . . 6 . . . Alerts 5 | . . . . . . . . . 2 . . . . . 1 . . . . 1 . . 1 Misdirections 7 | . . . . . . . . . . . . . . . . . . . . 7 . . . Weapon Failures 13 | . . . . . . . . . . . . . . . . . . . . 13 . . . Overload Shots 48 | . . . . . . . . . . . . . . . . . . . . 48 . . . Effects 1 | . . . . . . . . . . . . . . . . . . . . 1 . . . Energy Bleed 1 | . . . . . . . . . . . . . . . . . . . . 1 . . . Overflow Damage 12503 | . . 9 7 . 2 31 242 362 160 208 1384 134 1247 73 205 . 69 663 207 5396 906 531 667 Projectiles 11747 | . . . 7 . 2 31 158 362 160 208 1384 134 1207 73 205 . 69 653 207 4811 906 503 667 Explosions 756 | . . 9 . . . . 84 . . . . . 40 . . . . 10 . 585 . 28 . Melee . | . . . . . . . . . . . . . . . . . . . . . . . . Knockbacks 234 | . . . 4 4 . . 24 12 13 4 53 . 25 4 6 . 3 13 3 28 11 18 9 Impact . | . . . . . . . . . . . . . . . . . . . . . . . . Kinetic 217 | . . . 4 3 . . 20 11 13 4 48 . 24 3 6 . 3 11 3 27 10 18 9 Secondary 17 | . . . . 1 . . 4 1 . . 5 . 1 1 . . . 2 . 1 1 . . Self-Inflicted Damage 1422 | . . 50 25 . . 2 144 . . . . . 104 . . . . . . 1068 29 . . Shots 42 | . . 2 2 . . 1 2 . . . . . 2 . . . . . . 32 1 . . Rammed 17 | . 3 . . . 5 . 2 . . . . . . . . . . . . 1 . . 6 Targets Rammed 19 | . 3 . . . 6 . 3 . . . . . . . . . . . . 1 . . 6 Kicked 1 | . . . . . . . 1 . . . . . . . . . . . . . . . . Crushed 1 | . . . . . 1 . . . . . . . . . . . . . . . . . . Highest Temperature 419 | . 72 . 8 255 78 262 419 242 307 349 259 243 333 192 245 . 199 352 175 298 206 203 161 Average Temperature 90 | . 29 . 8 90 32 116 116 59 113 101 78 77 86 81 119 . 67 86 59 94 133 56 21 Received Heat Transfer 5435 | . 36 . 126 639 360 111 777 117 138 9 199 18 232 42 54 . 84 135 288 1516 243 78 233 Effects 14 | . . . . . . . 2 . . . . . 2 . . . . 1 . . 8 1 . Energy Bleed 7 | . . . . . . . 1 . . . . . . . . . . 1 . . 4 1 . Interference 7 | . . . . . . . 1 . . . . . 2 . . . . . . . 4 . . Siege Activations . | . . . . . . . . . . . . . . . . . . . . . . . . Martial Activations . | . . . . . . . . . . . . . . . . . . . . . . . . Shielding Activations . | . . . . . . . . . . . . . . . . . . . . . . . . Robots Disrupted 1 | . . . . . . . . . . . . . . . . . . . . 1 . . . Combat Hostiles 1 | . . . . . . . . . . . . . . . . . . . . 1 . . . Robots Corrupted 40 | . . . . . . . 1 . . . . . . 1 . . . 1 . 37 . . . Combat Hostiles 35 | . . . . . . . . . . . . . . 1 . . . . . 34 . . . Parts Fried 93 | . . . . . . 2 5 5 . . . . . 2 . . . 2 . 77 . . . Impact Corruptions 4 | . . . . . . . 1 . . . . . . 1 . . . 1 . 1 . . . Robots Melted 6 | . . . . . 3 1 2 . . . . . . . . . . . . . . . . Combat Hostiles 5 | . . . . . 2 1 2 . . . . . . . . . . . . . . . . Parts Melted 46 | . 2 . . 10 11 6 12 . . . 2 . . . . . . . 1 2 . . . Heat Transferred 21534 | . 555 . 74 4144 2701 1394 3850 . . . . . 200 . . . . . 740 7576 50 200 50 Parts Sabotaged 7 | . . . . . . . . . . . 1 . . . . . . . . 4 . 2 . Parts Stolen . | . . . . . . . . . . . . . . . . . . . . . . . . Parts Stripped . | . . . . . . . . . . . . . . . . . . . . . . . . Power Chain Reactions 9 | . . . . . . . . 1 . . . . . . . . . . . 5 1 1 1 Alert | -11 -10 -10 -10 -8 -8 -8 -6 -5 -5 -5 -5 -4 -4 -4 -4 -4 -3 -3 -3 -3 -2 -1 -1 ------- Run | Yrd Mat Min Sub Mat Sto Rec Fac Fac Upp Upp War Pro Fac Upp Upp Zhi Pro Res Qua Frg Res Acc Com Maximum Alert Level 5 | . . . . 1 2 1 3 2 . . . . 3 . . . . 2 2 5 5 5 5 Low Security (%) 41 | 100 100 100 . 64 62 96 11 . . . . . 18 . . . . 32 . 5 . . . Level 1 17 | . . . . 35 19 3 41 37 . . . . 9 . . . . 63 75 8 . . . Level 2 12 | . . . . . 18 . 35 62 . . . . 13 . . . . 4 24 15 . . . Level 3 5 | . . . . . . . 11 . . . . . 58 . . . . . . 2 . . . Level 4 1 | . . . . . . . . . . . . . . . . . . . . 5 . . . Level 5 13 | . . . . . . . . . . . . . . . . . . . . 50 19 7 64 High Security 8 | . . . . . . . . . . . . . . . . . . . . 11 80 92 35 Max Security . | . . . . . . . . . . . . . . . . . . . . . . . . Peak Influence 6663 | . 115 35 . 354 459 245 789 638 . . . . 929 . . . . 502 491 6663 4786 3331 3389 Initial 3747 | . . 35 . 17 146 165 413 380 . . . . . . . . . 27 279 261 3747 2871 2131 Average 969 | . 42 14 . 144 200 30 408 481 . . . . 568 . . . . 251 358 2423 4355 3091 2559 Influence Increases 20200 | . 202 58 160 809 708 349 1420 627 250 200 1191 105 1648 150 130 . 300 907 535 7324 1119 470 1538 Destroy 0b10 Robot/C 12140 | . 120 . 140 460 440 20 580 300 220 180 1020 80 760 140 120 . 260 480 280 4760 620 280 880 Destroy 0b10 Robot/NC 845 | . 5 10 . 70 80 85 60 65 . . 35 15 105 . . . . 50 25 190 30 5 15 Destroy Leader 1764 | . 22 . 20 122 100 . 172 82 30 20 . 10 188 10 10 . 40 86 36 542 100 52 122 Allied During Kill 189 | . . . . . . . . . . . 31 . . . . . . . . . . . 158 Successful Hack 124 | . 10 . . 8 9 12 28 . . . . . 57 . . . . . . . . . . Select Force Hacks 240 | . 30 . . . . 210 . . . . . . . . . . . . . . . . . Disable Machine 1530 | . . . . 75 15 . 45 90 . . . . 225 . . . . 90 75 840 . 30 45 Anti-Garrison Action 300 | . . . . . . . . . . . . . . . . . . . . 150 150 . . Destroy Structure 1483 | . . 48 . 14 4 22 75 90 . . . . 298 . . . . 186 44 482 84 43 93 Advance Influence 400 | . . . . . . . 400 . . . . . . . . . . . . . . . . Partial Spotted 60 | . . . . . . . 15 . . . . . . . . . . . . 15 15 15 . Lose Combat Pursuer 1125 | . 15 . . 60 60 . 45 . . . 105 . 15 . . . . 15 75 345 120 45 225 Influence Decreases 16951 | . 110 127 149 495 632 740 676 781 549 301 485 1034 810 541 300 277 258 453 567 1125 2996 1925 1620 Entered New Map 9551 | . . 57 13 17 202 259 20 397 231 63 223 929 . 311 86 277 . 15 217 203 2916 1915 1200 Time Decay 6525 | . 100 65 136 448 410 471 636 374 318 238 232 105 510 230 214 . 248 428 350 762 80 10 160 Lost Part 320 | . . . . 30 20 10 20 10 . . 10 . . . . . 10 10 . 160 . . 40 Lost Ally 255 | . 10 5 . . . . . . . . 20 . . . . . . . . . . . 220 Purge Threat 300 | . . . . . . . . . . . . . 300 . . . . . . . . . . Squads Dispatched 125 | . 2 . . 2 . . 11 2 . . . . 10 . . . . 4 2 64 2 18 8 Investigation 6 | . 2 . . 1 . . . . . . . . 2 . . . . 1 . . . . . Extermination 19 | . . . . . . . 4 1 . . . . 3 . . . . 3 1 6 . . 1 Reinforcement 15 | . . . . 1 . . 3 1 . . . . 4 . . . . . 1 2 2 . 1 Assault 74 | . . . . . . . 1 . . . . . 1 . . . . . . 51 . 15 6 Garrison 11 | . . . . . . . 3 . . . . . . . . . . . . 5 . 3 . Intercept . | . . . . . . . . . . . . . . . . . . . . . . . . Searches Triggered . | . . . . . . . . . . . . . . . . . . . . . . . . Construction Impeded 5 | . . . . 1 . . 1 . . . . . . . . . . . . 2 1 . . Haulers Reinforced 5 | . . . . . . . 2 1 . . . . 1 . . . . . . . 1 . . Active Scanning Responses . | . . . . . . . . . . . . . . . . . . . . . . . . Cargo Convoy Interrupts 1 | . . . . . . . . . . . . . . . . . . 1 . . . . . Stealth | -11 -10 -10 -10 -8 -8 -8 -6 -5 -5 -5 -5 -4 -4 -4 -4 -4 -3 -3 -3 -3 -2 -1 -1 --------- Run | Yrd Mat Min Sub Mat Sto Rec Fac Fac Upp Upp War Pro Fac Upp Upp Zhi Pro Res Qua Frg Res Acc Com Distress Signals 38 | . . . . 4 1 1 3 1 . . 3 . 3 . . . . 3 1 1 10 3 4 Communications Jammed 4 | . . . . . . . . . . . . . 3 . . . . . 1 . . . . Distress Signals 2 | . . . . . . . . . . . . . 1 . . . . . 1 . . . . Times Spotted 1012 | . 8 8 15 37 33 7 41 25 12 9 107 5 51 6 5 . 10 27 25 337 81 76 87 Peak Tracking Total 20 | . 5 2 3 6 5 2 5 5 4 6 19 4 5 5 3 . 5 4 6 15 15 20 20 Tactical Retreats 46 | . 1 1 . 2 3 . 2 . . . 5 . 1 . . . . 1 4 11 4 2 9 Traps | -11 -10 -10 -10 -8 -8 -8 -6 -5 -5 -5 -5 -4 -4 -4 -4 -4 -3 -3 -3 -3 -2 -1 -1 ------- Run | Yrd Mat Min Sub Mat Sto Rec Fac Fac Upp Upp War Pro Fac Upp Upp Zhi Pro Res Qua Frg Res Acc Com Traps Triggered 31 | . . . . 1 . . 3 3 . . . . 6 . . . . 4 1 12 . 1 . Indirectly 2 | . . . . . . . . 1 . . . . . . . . . . . 1 . . . Trap Hack Attempts . | . . . . . . . . . . . . . . . . . . . . . . . . Triggered . | . . . . . . . . . . . . . . . . . . . . . . . . Disarmed . | . . . . . . . . . . . . . . . . . . . . . . . . Reprogrammed . | . . . . . . . . . . . . . . . . . . . . . . . . Reused . | . . . . . . . . . . . . . . . . . . . . . . . . Traps Extracted . | . . . . . . . . . . . . . . . . . . . . . . . . Installed . | . . . . . . . . . . . . . . . . . . . . . . . . Triggered . | . . . . . . . . . . . . . . . . . . . . . . . . Machines | -11 -10 -10 -10 -8 -8 -8 -6 -5 -5 -5 -5 -4 -4 -4 -4 -4 -3 -3 -3 -3 -2 -1 -1 ---------- Run | Yrd Mat Min Sub Mat Sto Rec Fac Fac Upp Upp War Pro Fac Upp Upp Zhi Pro Res Qua Frg Res Acc Com Machines Disabled 131 | . . . 1 5 1 . 3 6 . . 5 . 15 1 . . . 6 5 77 1 2 3 Max in Single Turn 8 | . . . 1 2 1 . 3 2 . . 1 . 5 1 . . . 1 1 8 1 1 1 Garrison Access 4 | . . . . . . . . . . . . . 1 . . . . . 1 1 1 . . Energy Cycler 1 | . . . . . . . . . . . . . . . . . . . . . . 1 . Machines Repaired . | . . . . . . . . . . . . . . . . . . . . . . . . Machines Dismantled . | . . . . . . . . . . . . . . . . . . . . . . . . Machines Sabotaged . | . . . . . . . . . . . . . . . . . . . . . . . . Overloaded Fab Kills . | . . . . . . . . . . . . . . . . . . . . . . . . Hacking | -11 -10 -10 -10 -8 -8 -8 -6 -5 -5 -5 -5 -4 -4 -4 -4 -4 -3 -3 -3 -3 -2 -1 -1 --------- Run | Yrd Mat Min Sub Mat Sto Rec Fac Fac Upp Upp War Pro Fac Upp Upp Zhi Pro Res Qua Frg Res Acc Com Machines Accessed 47 | . 3 . 2 1 3 9 2 1 1 . 2 . 11 . . 4 . 3 1 2 1 . 1 Terminals 22 | . 2 . . 1 3 1 2 . . . . . 8 . . . . 3 . . 1 . 1 Fabricators 2 | . . . . . . . . 1 . . . . 1 . . . . . . . . . . Repair Stations . | . . . . . . . . . . . . . . . . . . . . . . . . Recycling Units 8 | . 1 . . . . 7 . . . . . . . . . . . . . . . . . Scanalyzers 1 | . . . . . . . . . . . . . . . . . . . . 1 . . . Garrison Access 4 | . . . . . . . . . . . . . 2 . . . . . 1 1 . . . Total Hacks 111 | . 10 . 5 5 8 18 4 6 1 . 2 . 20 . . 17 . 6 2 3 3 . 1 Successful 57 | . 4 . 5 2 2 11 2 1 1 . 2 . 7 . . 17 . . 1 1 1 . . Failed 54 | . 6 . . 3 6 7 2 5 . . . . 13 . . . . 6 1 2 2 . 1 Catastrophic 12 | . 2 . . . . 1 2 . . . . . 5 . . . . 1 . 1 . . . Database Lockouts . | . . . . . . . . . . . . . . . . . . . . . . . . Manual 53 | . 10 . . 5 2 14 . 6 . . . . 13 . . . . 3 . . . . . Terminals 56 | . 9 . . 5 8 4 4 . . . . . 16 . . . . 6 . . 3 . 1 Fabricators 7 | . . . . . . . . 6 . . . . 1 . . . . . . . . . . Repair Stations . | . . . . . . . . . . . . . . . . . . . . . . . . Recycling Units 13 | . 1 . . . . 12 . . . . . . . . . . . . . . . . . Scanalyzers 2 | . . . . . . . . . . . . . . . . . . . . 2 . . . Garrison Access 6 | . . . . . . . . . . . . . 3 . . . . . 2 1 . . . Terminal Hacks 41 | . 2 . 5 1 2 4 2 . 1 . 2 . 4 . . 17 . . . . 1 . . Record 10 | . . . 4 . . . . . . . 1 . . . . 5 . . . . . . . Part Schematic 5 | . . . . . . 1 . . . . . . . . . 4 . . . . . . . Robot Analysis 6 | . 2 . . . . . . . . . . . . . . 4 . . . . . . . Prototype ID Bank 4 | . . . . . . . . . . . . . . . . 4 . . . . . . . Open Door 3 | . . . . . 1 . . . 1 . 1 . . . . . . . . . . . . Branch Access Points 3 | . . . . 1 1 . . . . . . . 1 . . . . . . . . . . Alert Level 1 | . . . . . . . . . . . . . . . . . . . . . 1 . . Unreport Threat 2 | . . . . . . . . . . . . . 2 . . . . . . . . . . Hauler Manifests 3 | . . . . . . 1 2 . . . . . . . . . . . . . . . . Zone Layout 1 | . . . . . . . . . . . . . 1 . . . . . . . . . . Proto ID Catalog 1 | . . . 1 . . . . . . . . . . . . . . . . . . . . Release Object 2 | . . . . . . 2 . . . . . . . . . . . . . . . . . Fabricator Hacks . | . . . . . . . . . . . . . . . . . . . . . . . . Repair Station Hacks . | . . . . . . . . . . . . . . . . . . . . . . . . Recycling Unit Hacks . | . . . . . . . . . . . . . . . . . . . . . . . . Scanalyzer 1 | . . . . . . . . . . . . . . . . . . . . 1 . . . Insert Component 1 | . . . . . . . . . . . . . . . . . . . . 1 . . . Garrison Access Hacks 2 | . . . . . . . . . . . . . 1 . . . . . 1 . . . . Seal Access 2 | . . . . . . . . . . . . . 1 . . . . . 1 . . . . Unauthorized Hacks 13 | . 2 . . 1 . 7 . 1 . . . . 2 . . . . . . . . . . Terminals 4 | . 1 . . 1 . . . . . . . . 2 . . . . . . . . . . Assimilate 3 | . 1 . . . . . . . . . . . 2 . . . . . . . . . . Botnet 1 | . . . . 1 . . . . . . . . . . . . . . . . . . . Fabricators 1 | . . . . . . . . 1 . . . . . . . . . . . . . . . Haulers 1 | . . . . . . . . 1 . . . . . . . . . . . . . . . Repair Stations . | . . . . . . . . . . . . . . . . . . . . . . . . Recycling Units 8 | . 1 . . . . 7 . . . . . . . . . . . . . . . . . Tunnel 8 | . 1 . . . . 7 . . . . . . . . . . . . . . . . . Scanalyzers . | . . . . . . . . . . . . . . . . . . . . . . . . Garrison Access . | . . . . . . . . . . . . . . . . . . . . . . . . Data Cores Recovered 2 | . . . . . 1 . . . . . . . . . . . . 1 . . . . . Used 1 | . . . . . 1 . . . . . . . . . . . . . . . . . . Hacking Detections 24 | . 2 . . . 3 1 1 1 . . . . 9 . . . . 3 . 2 1 . 1 Full Trace Events 5 | . 1 . . . . 1 . . . . . . 2 . . . . 1 . . . . . Feedback Events 2 | . . . . . . 1 . . . . . . . . . . . 1 . . . . . Corruption 1 | . . . . . . 1 . . . . . . . . . . . . . . . . . Hackware Fried 1 | . . . . . . . . . . . . . . . . . . 1 . . . . . Feedback Blocked . | . . . . . . . . . . . . . . . . . . . . . . . . Robot Schematics Acquired 5 | . . . . . . . . . . . . . . . . . . . . 5 . . . Robots Built . | . . . . . . . . . . . . . . . . . . . . . . . . Authchips . | . . . . . . . . . . . . . . . . . . . . . . . . Time . | . . . . . . . . . . . . . . . . . . . . . . . . Total Robot Build Rating . | . . . . . . . . . . . . . . . . . . . . . . . . Part Schematics Acquired 9 | . . . . . . 1 . . . . . . . . . 4 . . . 4 . . . Parts Built . | . . . . . . . . . . . . . . . . . . . . . . . . Authchips . | . . . . . . . . . . . . . . . . . . . . . . . . Time . | . . . . . . . . . . . . . . . . . . . . . . . . Total Part Build Rating . | . . . . . . . . . . . . . . . . . . . . . . . . Parts Repaired . | . . . . . . . . . . . . . . . . . . . . . . . . Time . | . . . . . . . . . . . . . . . . . . . . . . . . Parts Recycled . | . . . . . . . . . . . . . . . . . . . . . . . . Recycled Matter . | . . . . . . . . . . . . . . . . . . . . . . . . Retrieved Matter . | . . . . . . . . . . . . . . . . . . . . . . . . Retrieved Components . | . . . . . . . . . . . . . . . . . . . . . . . . Parts Scanalyzed . | . . . . . . . . . . . . . . . . . . . . . . . . Part Schematics Acquired . | . . . . . . . . . . . . . . . . . . . . . . . . Parts Damaged . | . . . . . . . . . . . . . . . . . . . . . . . . Bothacking | -11 -10 -10 -10 -8 -8 -8 -6 -5 -5 -5 -5 -4 -4 -4 -4 -4 -3 -3 -3 -3 -2 -1 -1 ------------ Run | Yrd Mat Min Sub Mat Sto Rec Fac Fac Upp Upp War Pro Fac Upp Upp Zhi Pro Res Qua Frg Res Acc Com Used RIF Installer . | . . . . . . . . . . . . . . . . . . . . . . . . Robots Hacked . | . . . . . . . . . . . . . . . . . . . . . . . . Non-combat . | . . . . . . . . . . . . . . . . . . . . . . . . Combat . | . . . . . . . . . . . . . . . . . . . . . . . . Robot Hacks Applied . | . . . . . . . . . . . . . . . . . . . . . . . . Relay Couplers Released 1 | . . . . . . . . . . . . . . . . . . . . 1 . . . Machine Destruction 1 | . . . . . . . . . . . . . . . . . . . . 1 . . . Fabnet Peak Effective % . | . . . . . . . . . . . . . . . . . . . . . . . . Robots Rewired 2 | . . . . . . . . . . . 2 . . . . . . . . . . . . Allies Hacked . | . . . . . . . . . . . . . . . . . . . . . . . . Hacks Repelled . | . . . . . . . . . . . . . . . . . . . . . . . . Allies | -11 -10 -10 -10 -8 -8 -8 -6 -5 -5 -5 -5 -4 -4 -4 -4 -4 -3 -3 -3 -3 -2 -1 -1 -------- Run | Yrd Mat Min Sub Mat Sto Rec Fac Fac Upp Upp War Pro Fac Upp Upp Zhi Pro Res Qua Frg Res Acc Com Total Allies 6 | . 1 2 . . . . . . . . 2 . 1 . . . . . . . . . . Largest Group 2 | . 1 2 . . . . . . . . 2 . 1 1 . . . . . . . . . Highest-Rated Group 128 | . 10 49 . . . . . . . . 128 . 45 45 . . . . . . . . . Highest-Rated Ally 64 | . 10 31 . . . . . . . . 64 . 45 45 . . . . . . . . . Total Orders 4 | . . . . . . . . . . . . . . 1 . . . . . . . . 3 STAY 1 | . . . . . . . . . . . . . . 1 . . . . . . . . . RETURN 3 | . . . . . . . . . . . . . . . . . . . . . . . 3 Ally Attacks 129 | . . 3 . . . . . . . . . . . . . . . . . . . . 126 Total Damage 7734 | . . 41 . . . . . . . . . . . . . . . . . . . . 7693 Kills 19 | . . . . . . . . . . . . . . . . . . . . . . . 19 Allies Corrupted 2 | . . . . . . . . . . . . . . . . . . . . . . . 2 Allies Melted 1 | . . . . . 1 . . . . . . . . . . . . . . . . . . Intel | -11 -10 -10 -10 -8 -8 -8 -6 -5 -5 -5 -5 -4 -4 -4 -4 -4 -3 -3 -3 -3 -2 -1 -1 ------- Run | Yrd Mat Min Sub Mat Sto Rec Fac Fac Upp Upp War Pro Fac Upp Upp Zhi Pro Res Qua Frg Res Acc Com Active Infowar (turns) 9654 | . . . . . . . . 462 712 510 573 400 1504 483 443 219 782 1058 785 1252 . . 471 Optics 6015 | . . . . . . . . . . . . . 1318 483 443 219 782 1058 785 456 . . 471 IFF 2602 | . . . . . . . . . 613 510 316 400 758 . . . . 5 . . . . . Terrain 3204 | . . . . . . . . . . . . . 638 237 356 212 349 689 247 476 . . . Cloaking 517 | . . . . . . . . . . . 1 . 142 . . . . 4 . 370 . . . Jamming 2313 | . . . . . . . . 462 99 . 256 . 311 . . . . 121 292 772 . . . Robot Analysis Total 6 | . 2 . . . . . . . . . . . . . . 4 . . . . . . . Derelict Logs Recovered 10 | . . 1 1 . . . . . 1 1 . 3 . 1 2 . . . . . . . . Drone Launches 15 | . . . . . . . . . . . . . . . . . . . . . . . 15 Drone Recoveries 3 | . . . . . . . . . . . . . . . . . . . . . . . 3 Exploration | -11 -10 -10 -10 -8 -8 -8 -6 -5 -5 -5 -5 -4 -4 -4 -4 -4 -3 -3 -3 -3 -2 -1 -1 ------------- Run | Yrd Mat Min Sub Mat Sto Rec Fac Fac Upp Upp War Pro Fac Upp Upp Zhi Pro Res Qua Frg Res Acc Com Turns Passed 28649 | 68 361 205 1471 1174 991 6347 2249 864 712 510 1355 400 1504 483 443 219 782 1058 785 4801 913 433 521 Spaces Moved 18018 | 39 181 108 814 461 386 2290 794 512 823 367 969 325 1386 523 483 163 420 875 640 3545 1227 347 340 Core 1377 | 2 . . . . . 1374 . . . . . . . . . . . . . . 1 . . Treads 7051 | 37 181 108 689 4 316 572 232 191 612 367 884 . 53 523 483 70 123 727 . 447 140 . 292 Legs 3658 | . . . 125 457 70 . 353 321 211 . . . 501 . . 93 297 . . 596 239 347 48 Wheels 495 | . . . . . . 344 151 . . . . . . . . . . . . . . . . Hover 3991 | . . . . . . . . . . . 85 325 823 . . . . 148 640 1970 . . . Flight 1446 | . . . . . . . 58 . . . . . 9 . . . . . . 532 847 . . Fastest Speed 13 | 50 160 160 130 120 157 88 171 78 78 78 78 78 78 78 78 78 88 88 94 13 20 87 87 Average Speed 110 | 154 160 160 155 169 168 194 214 140 78 78 78 78 78 78 78 83 88 94 94 83 43 87 87 Slowest Speed 2250 | 160 160 160 160 480 480 350 259 205 78 78 78 78 78 78 78 88 88 151 94 160 2250 87 87 Overloaded Moves 65 | . . . . . . . . . . . . . . . . . . . . 44 21 . . Propulsion Burnouts . | . . . . . . . . . . . . . . . . . . . . . . . . Robots Hopped 7 | . . . . . . . . . . . . . . . . . . . . 3 4 . . Potential Cave-ins 10 | . . . . . . . . . . . . . . . . . . 2 . 6 . . 2 Cave-ins Triggered . | . . . . . . . . . . . . . . . . . . . . . . . . Teleports 49 | . . . . . . . . . . . . . . . . . . . . 5 35 9 . Exploration Rate (%) 51 | 4 36 34 61 36 55 97 20 17 89 65 90 49 51 72 69 60 91 31 71 65 40 12 21 Regions Visited 23 Branch Regions 15 Pre-discovered Areas 15 | . 1 . 1 . . 7 . . . . . 2 . . 1 3 . . . . . . . Known Exits Taken 5 | . . . . 1 1 . . 1 1 . . . 1 . . . . . . . . . . Unknown Exits Taken 18 | 1 1 1 1 . . 1 1 . . 1 1 1 . 1 1 1 1 1 1 1 1 1 . Scrap Searched 20 | . . 1 2 . . . . . 3 3 . 2 . 1 5 . 3 . . . . . . Spaces Dug 156 | . . 18 11 . . . 4 . . . . 4 17 13 8 . . 54 3 13 1 4 6 Terrain Destroyed 1040 | . . 94 79 11 . 23 76 49 62 29 39 15 167 24 25 . 26 122 32 92 31 11 33 Melee . | . . . . . . . . . . . . . . . . . . . . . . . . Projectile 652 | . . . 1 11 . . 52 49 62 29 39 15 99 24 25 . 26 51 32 87 24 11 15 AOE 388 | . . 94 78 . . 23 24 . . . . . 68 . . . . 71 . 5 7 . 18 Terrain Rammed . | . . . . . . . . . . . . . . . . . . . . . . . . Walls Destroyed . | . . . . . . . . . . . . . . . . . . . . . . . . Machines Disabled . | . . . . . . . . . . . . . . . . . . . . . . . . Actions | -11 -10 -10 -10 -8 -8 -8 -6 -5 -5 -5 -5 -4 -4 -4 -4 -4 -3 -3 -3 -3 -2 -1 -1 --------- Run | Yrd Mat Min Sub Mat Sto Rec Fac Fac Upp Upp War Pro Fac Upp Upp Zhi Pro Res Qua Frg Res Acc Com Total 24551 | 44 212 131 922 632 570 4048 1200 617 864 574 1375 459 1668 574 519 245 798 1026 773 4868 1525 426 481 Wait 3744 | . 1 7 13 8 26 1611 203 10 6 182 116 116 94 24 1 69 338 42 63 594 180 9 31 Move 17982 | 38 180 107 813 460 385 2289 793 511 822 366 968 324 1385 522 482 162 419 874 639 3539 1219 346 339 Hop 6 | . . . . . . . . . . . . . . . . . . . . 3 3 . . Pick Up 264 | . 8 2 7 25 16 13 35 19 3 . 21 1 15 2 2 2 1 5 7 61 12 2 5 Fast Attach 95 | 6 . . 4 13 9 1 5 . . 1 2 . 1 . . 6 . 2 3 30 5 2 5 Attach 78 | . . . . 2 4 4 3 3 1 . 3 1 5 . . . . 4 1 38 3 4 2 Detach 24 | . . . . . 1 1 . . . . . . 2 . . . . 1 1 14 2 . 2 Swap 97 | . . 1 5 . 13 4 . 3 1 . 5 1 16 3 2 . 4 18 6 13 . 2 . Drop 288 | . . 2 17 10 26 24 18 22 2 6 14 3 11 1 2 6 3 8 5 74 21 8 5 Fire 1888 | . 20 12 58 114 84 101 132 49 29 19 196 13 139 22 30 . 33 72 48 499 80 53 85 Melee 9 | . . . . . . . 6 . . . . . . . . . . . . 3 . . . Ram . | . . . . . . . . . . . . . . . . . . . . . . . . Kick 1 | . . . . . . . 1 . . . . . . . . . . . . . . . . Crush 17 | . 3 . . . 6 . 2 . . . . . . . . . . . . . . . 6 Escape Stasis 2 | . . . . . . . 2 . . . . . . . . . . . . . . . . Rewire 50 | . . . . . . . . . . . 50 . . . . . . . . . . . . Trap . | . . . . . . . . . . . . . . . . . . . . . . . . Miscellaneous 6 | . . . 5 . . . . . . . . . . . . . . . . . . . 1 Route ------- -11/Scrapyard -10/Materials (discovered 2 exits: [*Mat] / [*Min]) -10/Mines (discovered 2 exits: [*Mat] / *Sub) -10/Subcaves (discovered 2 exits: *Mat / Rec) -8/Materials (discovered 2 exits: [*Fac] / *Sto) -8/Storage -8/Recycling -6/Factory -5/Factory -5/Upper Caves -5/Upper Caves (discovered 2 exits: *Fac / *War) -5/Warlord -4/Proximity Caves -4/Factory (discovered 3 exits: *Res / *Upp x2) -4/Upper Caves -4/Upper Caves (discovered 2 exits: *Res / *Zhi) -4/Zhirov -3/Proximity Caves -3/Research (discovered 2 exits: *Qua x2) -3/Quarantine (discovered 3 exits: Res / [*Sec] / *Frg) -3/Protoforge -2/Research -1/Access -1/Command To Fleet Rendezvous History --------- Turn | Location | Event 39 | -11/Scrapyard | Discovered new exit (range 12) 69 | -11/Scrapyard | Entered Materials 174 | -10/Materials | Discovered new exit (range 5) 277 | -10/Materials | Discovered new exit (range 10) 317 | -10/Materials | Build established: Mutant 430 | -10/Materials | Entered Mines 492 | -10/Mines | Discovered new exit (range 15) 534 | -10/Mines | Assembled infested the area 539 | -10/Mines | Assisted by a Guerilla fighting off Assembled 570 | -10/Mines | Learned location of 1 exit from Materials 592 | -10/Mines | Core integrity fell below 50% 602 | -10/Mines | Lost 3 allies 627 | -10/Mines | Discovered new exit (range 6) 635 | -10/Mines | Entered Subcaves 673 | -10/Subcaves | Ambushed by angry Subdweller bent on revenge 1093 | -10/Subcaves | Learned location of Zion (-7) 1093 | -10/Subcaves | Met a Zionite searching for "candidates" 1464 | -10/Subcaves | Learned Materials terminal intel 1475 | -10/Subcaves | Shifting Twisted Machinery released Sub. Beam Cannon 1505 | -10/Subcaves | Shifting Twisted Machinery released Sub. Optics 1747 | -10/Subcaves | Visited Clippyterm 1752 | -10/Subcaves | Identified exit to Recycling 1878 | -10/Subcaves | Visited 4L-MR0's lab 1900 | -10/Subcaves | Found Cargo Legs 1901 | -10/Subcaves | Attached Cargo Legs, gained temporary slots: Utility x2 2057 | -10/Subcaves | Core integrity fell below 20% 2073 | -10/Subcaves | Shifting Twisted Machinery released Mak. Thermal Plating 2073 | -10/Subcaves | Discovered new exit (range 10) 2106 | -10/Subcaves | Entered Materials 2106 | -8/Materials | Evolved 4 slots: Propulsion x4 2107 | -8/Materials | Identified exit to Storage 2108 | -8/Materials | Loaded intel: 12 terminal locations 2894 | -8/Materials | Discovered new exit (range 15) 3280 | -8/Materials | Entered Storage 3405 | -8/Storage | Met 01-MTF 3507 | -8/Storage | Destroyed 01-MTF 3520 | -8/Storage | Found Prototype Energy Gun 3521 | -8/Storage | Identified 01-MTF's Shockpuncher 4265 | -8/Storage | Used back door to open Recycling access 4271 | -8/Storage | Entered Recycling 4281 | -8/Recycling | Core integrity fell below 50% 4520 | -8/Recycling | Discovered new exit (range 15) 4748 | -8/Recycling | Build established: Scavenger-Mutant 5087 | -8/Recycling | Entered Scraplab 5104 | -8/Recycling | Found Prototype Device 5104 | -8/Recycling | Identified Scrap Engine 5472 | -8/Recycling | Build established: Mutant 5911 | -8/Recycling | Build established: Construct 10618 | -8/Recycling | Entered Factory 10618 | -6/Factory | Evolved 4 slots: Power x1, Utility x2, Weapon x1 11417 | -6/Factory | Garrison activated, responded to threat 12391 | -6/Factory | Discovered new exit (range 16) 12718 | -6/Factory | First assault squad dispatched 12867 | -6/Factory | Entered another Factory area 12867 | -5/Factory | Evolved 2 slots: Propulsion x1, Utility x1 13237 | -5/Factory | Destroyed 9 combat bots 13662 | -5/Factory | Discovered new exit (range 8) 13711 | -5/Factory | Identified exit to Upper Caves 13731 | -5/Factory | Entered Upper Caves 13807 | -5/Upper Caves | Destroyed 7 combat bots 13908 | -5/Upper Caves | Attracted the attention of an 0b10 checkpoint 13961 | -5/Upper Caves | Identified exit to Upper Caves 14443 | -5/Upper Caves | Entered another Upper Caves area 14498 | -5/Upper Caves | Destroyed 8 combat bots 14506 | -5/Upper Caves | Discovered new exit (range 5) 14716 | -5/Upper Caves | Attracted the attention of an 0b10 checkpoint 14770 | -5/Upper Caves | Learned 4 Factory zone layouts 14895 | -5/Upper Caves | Discovered new exit (range 8) 14953 | -5/Upper Caves | Entered Warlord 14979 | -5/Warlord | System corruption cleaned by Quarantine Array 15249 | -5/Warlord | Found Prototype Processor 15251 | -5/Warlord | Found Prototype Hackware 15255 | -5/Warlord | Found Prototype Reactor 15258 | -5/Warlord | Found Prototype Device 15269 | -5/Warlord | Identified Exp. Cloaking Device 15378 | -5/Warlord | Visited the Vortex Lab 15384 | -5/Warlord | Found Prototype Energy Gun 15386 | -5/Warlord | Found Prototype Energy Gun 15397 | -5/Warlord | Warlord's base attacked by MAIN.C 15427 | -5/Warlord | Met Warlord 15530 | -5/Warlord | Identified Exp. Armor Integrity Analyzer 15711 | -5/Warlord | Destroyed 7 combat bots 15747 | -5/Warlord | Warlord forces counterattacked 15785 | -5/Warlord | Spotted Executioner 15791 | -5/Warlord | P-70 Sage assimilated allied 1G-TPH(g) 15796 | -5/Warlord | Destroyed Executioner 15810 | -5/Warlord | Spotted Striker 15813 | -5/Warlord | Found Prototype Processor 15813 | -5/Warlord | Identified Exp. Targeting Computer 15814 | -5/Warlord | Spotted Striker 15825 | -5/Warlord | Destroyed Striker 15837 | -5/Warlord | Spotted Executioner 15858 | -5/Warlord | Destroyed 17 combat bots 15869 | -5/Warlord | Lost 4 allies 15881 | -5/Warlord | Spotted Executioner 15882 | -5/Warlord | Spotted Striker 15889 | -5/Warlord | Spotted Executioner 15900 | -5/Warlord | Spotted B-86 Titan 15912 | -5/Warlord | Spotted Executioner 15915 | -5/Warlord | Spotted Striker 15921 | -5/Warlord | Found Prototype Processor 15940 | -5/Warlord | Identified Exp. Core Analyzer 15948 | -5/Warlord | Destroyed Executioner 15963 | -5/Warlord | Found Exp. Core Analyzer 15971 | -5/Warlord | Destroyed 12 combat bots 15974 | -5/Warlord | Found Prototype Device 15981 | -5/Warlord | Lost 19 allies 16070 | -5/Warlord | Destroyed Executioner 16072 | -5/Warlord | Warlord base infiltrated, sounded retreat 16136 | -5/Warlord | Spotted Striker 16154 | -5/Warlord | Identified Adv. Kinecellerator 16170 | -5/Warlord | Spotted Executioner 16232 | -5/Warlord | Lost 10 allies 16244 | -5/Warlord | Spotted Executioner 16250 | -5/Warlord | Spotted Striker 16250 | -5/Warlord | Discovered new exit (range 14) 16257 | -5/Warlord | Spotted Executioner 16265 | -5/Warlord | Spotted Executioner 16279 | -5/Warlord | Destroyed Executioner 16308 | -5/Warlord | Entered Proximity Caves 16311 | -4/Proximity Caves | Spotted B-86 Titan 16314 | -4/Proximity Caves | Lost 8 allies 16319 | -4/Proximity Caves | Learned location of Testing (-2) 16409 | -4/Proximity Caves | Learned Research garrison access intel 16457 | -4/Proximity Caves | Core integrity fell below 50% 16536 | -4/Proximity Caves | Discovered new exit (range 10) 16708 | -4/Proximity Caves | Entered Factory 16708 | -4/Factory | Evolved 2 slots: Utility x2 16756 | -4/Factory | Spotted B-86 Titan 16768 | -4/Factory | Destroyed B-86 Titan 16826 | -4/Factory | Found Prototype Hackware 17290 | -4/Factory | Discovered new exit (range 19) 17731 | -4/Factory | Found Prototype Processor 17731 | -4/Factory | Identified Exp. Terrain Scan Processor 17781 | -4/Factory | Discovered new exit (range 17) 18011 | -4/Factory | Identified exit to Upper Caves 18208 | -4/Factory | First assault squad dispatched 18212 | -4/Factory | Entered Upper Caves 18212 | -4/Upper Caves | Accompanied by 1 ally 18284 | -4/Upper Caves | Learned 8 Research zone layouts 18286 | -4/Upper Caves | Attracted the attention of an 0b10 outpost 18363 | -4/Upper Caves | Spotted B-86 Titan 18668 | -4/Upper Caves | Discovered new exit (range 15) 18695 | -4/Upper Caves | Entered another Upper Caves area 18723 | -4/Upper Caves | Entered a destroyed Warlord outpost 18726 | -4/Upper Caves | Discovered new exit (range 18) 18947 | -4/Upper Caves | Attracted the attention of an 0b10 checkpoint 19078 | -4/Upper Caves | Learned Research terminal intel 19122 | -4/Upper Caves | Discovered new exit (range 18) 19138 | -4/Upper Caves | Entered Zhirov 19138 | -4/Zhirov | Discovered new exit (range 3) 19153 | -4/Zhirov | Met Zhirov 19176 | -4/Zhirov | Found Alien Artifact 19176 | -4/Zhirov | Identified Integrated Dissipator 19176 | -4/Zhirov | Installed Integrated Dissipator, increased core heat dissipation (+20) 19303 | -4/Zhirov | Found Alien Artifact 19328 | -4/Zhirov | Learned location of Command (-1) 19333 | -4/Zhirov | Zhirov requested help retrieving the SGEMP Prototype 19357 | -4/Zhirov | Entered Proximity Caves 19394 | -3/Proximity Caves | Attracted the attention of an 0b10 checkpoint 19446 | -3/Proximity Caves | Spotted B-86 Titan 19497 | -3/Proximity Caves | Destroyed B-86 Titan 19688 | -3/Proximity Caves | Received a Behemoth hack from an annoying Tinkerer 19955 | -3/Proximity Caves | Discovered new exit (range 12) 20139 | -3/Proximity Caves | Entered Research 20139 | -3/Research | Evolved 2 slots: Propulsion x1, Weapon x1 20141 | -3/Research | Loaded intel: 24 terminal locations 20142 | -3/Research | Loaded intel: 4 garrison access locations 20264 | -3/Research | Adv. Hacking Suite fried by hacking feedback 20373 | -3/Research | Spotted B-86 Titan 20719 | -3/Research | Identified Vortex Shotgun (x2) 20873 | -3/Research | Discovered new exit (range 19) 20881 | -3/Research | Found Prototype Device 20881 | -3/Research | Identified Exp. Shield Generator 20985 | -3/Research | Identified Ghost Barrier 21074 | -3/Research | Discovered new exit (range 20) 21124 | -3/Research | Cargo convoy interrupted 21197 | -3/Research | Entered Quarantine 21329 | -3/Quarantine | Found Prototype Device 21528 | -3/Quarantine | Identified Exp. Thermal Shield 21534 | -3/Quarantine | Found Alien Artifact 21678 | -3/Quarantine | Found Alien Artifact 21723 | -3/Quarantine | Found Alien Artifact 21752 | -3/Quarantine | Discovered new exit (range 20) 21903 | -3/Quarantine | Spotted Fortress 21974 | -3/Quarantine | Discovered new exit (range 5) 21974 | -3/Quarantine | Discovered new exit (range 6) 21982 | -3/Quarantine | Entered Protoforge 21996 | -3/Protoforge | Identified Core Reset Matrix 21999 | -3/Protoforge | Identified Terrabomb 21999 | -3/Protoforge | Identified Transdimensional Reconstructor 21999 | -3/Protoforge | Identified Subatomic Replicator 21999 | -3/Protoforge | Used Core Reset Matrix 22003 | -3/Protoforge | Sensed 2 artifacts in vicinity 22024 | -3/Protoforge | Spotted Hotshot 22094 | -3/Protoforge | Discovered new exit (range 19) 22354 | -3/Protoforge | Used Terrabomb 22354 | -3/Protoforge | Additional patrols dispatched to research labs 22354 | -3/Protoforge | Superfortress began startup sequence 22362 | -3/Protoforge | Spotted Immortal 22364 | -3/Protoforge | Spotted Immortal 22367 | -3/Protoforge | Found Prototype Launcher 22369 | -3/Protoforge | Found Prototype Launcher 22388 | -3/Protoforge | Identified Cep. Rapid Grenade Launcher 22396 | -3/Protoforge | Destroyed Immortal 22400 | -3/Protoforge | Destroyed Immortal 22435 | -3/Protoforge | Spotted Decapitator 22435 | -3/Protoforge | Spotted Decapitator 22435 | -3/Protoforge | Spotted Decapitator 22435 | -3/Protoforge | Spotted Decapitator 22437 | -3/Protoforge | Destroyed Decapitator 22437 | -3/Protoforge | Destroyed Decapitator 22439 | -3/Protoforge | Destroyed Decapitator 22439 | -3/Protoforge | Destroyed Decapitator 22634 | -3/Protoforge | Identified Cep. EMP Blanket Launcher 22634 | -3/Protoforge | Forge Plexus network access discovered 22637 | -3/Protoforge | Spotted Decapitator 22639 | -3/Protoforge | Spotted Decapitator 22640 | -3/Protoforge | Spotted Decapitator 22643 | -3/Protoforge | Destroyed Decapitator 22643 | -3/Protoforge | Destroyed Decapitator 22643 | -3/Protoforge | Destroyed Decapitator 22666 | -3/Protoforge | Found Faulty Cep. Rapid Grenade Launcher 22732 | -3/Protoforge | First assault squad dispatched 22736 | -3/Protoforge | Found Cep. Antigrav Storage Unit 22756 | -3/Protoforge | Spotted V432-c 22756 | -3/Protoforge | Spotted V184-r 22756 | -3/Protoforge | Spotted V268-p 22769 | -3/Protoforge | Found Cep. Chromion Battery 22786 | -3/Protoforge | Found Faulty Cep. Matter Streamer 22817 | -3/Protoforge | Found Crosscalibrator 22845 | -3/Protoforge | Identified Exp. System Shield 22900 | -3/Protoforge | Found Cep. Matter Streamer 22913 | -3/Protoforge | Destroyed V268-p 22920 | -3/Protoforge | Destroyed V184-r 22953 | -3/Protoforge | Destroyed V432-c 23005 | -3/Protoforge | Found Cep. Hypertargeting System 23025 | -3/Protoforge | Found Corrupted Prototype Device 23382 | -3/Protoforge | Found Cep. Variable Chargecaster 23384 | -3/Protoforge | Found Cep. Helical Railcannon 23386 | -3/Protoforge | Found Faulty Cep. XC Strikerail 23398 | -3/Protoforge | Found Cep. Plasma Driver 23400 | -3/Protoforge | Found Faulty Cep. Heavy Railcannon 23485 | -3/Protoforge | Found Cep. XC Strikerail 23549 | -3/Protoforge | Destroyed 14 combat bots 23638 | -3/Protoforge | Garrison activated, responded to threat 23666 | -3/Protoforge | Spotted Decapitator 23666 | -3/Protoforge | Spotted Decapitator 23666 | -3/Protoforge | Spotted V031-a 23666 | -3/Protoforge | Spotted V588-q 23672 | -3/Protoforge | Spotted Decapitator 23676 | -3/Protoforge | Destroyed Decapitator 23677 | -3/Protoforge | Destroyed Decapitator 23678 | -3/Protoforge | Destroyed Decapitator 23701 | -3/Protoforge | Destroyed V588-q 23715 | -3/Protoforge | Found Prototype Processor 23715 | -3/Protoforge | Identified Exp. Armor Integrity Analyzer 23729 | -3/Protoforge | Found Exp. EM Disruption Field 23751 | -3/Protoforge | Found Prototype Processor 23751 | -3/Protoforge | Identified Cep. Melee Reflex Suite 23754 | -3/Protoforge | Found Faulty Cep. Networked Targeting System 23757 | -3/Protoforge | Found Cep. Weapon Articulator 23761 | -3/Protoforge | Found Exp. Kinecellerator 23782 | -3/Protoforge | Found Faulty Cep. Networked Targeting System 23783 | -3/Protoforge | Found Cep. Countertargeting System 23785 | -3/Protoforge | Found Faulty Cep. Networked Targeting System 23876 | -3/Protoforge | Spotted V918-w 23876 | -3/Protoforge | Spotted V458-s 23878 | -3/Protoforge | Destroyed V458-s 23890 | -3/Protoforge | Destroyed V918-w 24073 | -3/Protoforge | Spotted V839-o 24086 | -3/Protoforge | Destroyed V839-o 24451 | -3/Protoforge | Destroyed 14 combat bots 24481 | -3/Protoforge | Spotted Decapitator 24481 | -3/Protoforge | Spotted Decapitator 24504 | -3/Protoforge | Spotted V562-a 24504 | -3/Protoforge | Spotted V863-o 24507 | -3/Protoforge | Spotted V864-t 24526 | -3/Protoforge | Destroyed V864-t 24530 | -3/Protoforge | Destroyed V562-a 24542 | -3/Protoforge | Destroyed V863-o 24547 | -3/Protoforge | Spotted Immortal 24548 | -3/Protoforge | Spotted Immortal 24588 | -3/Protoforge | Destroyed Immortal 24590 | -3/Protoforge | Destroyed Immortal 24612 | -3/Protoforge | Spotted V184-a 24627 | -3/Protoforge | Destroyed V184-a 24655 | -3/Protoforge | Found Cep. Zero-point Core 24658 | -3/Protoforge | Found Cep. Zero-point Core 24665 | -3/Protoforge | Found Faulty Cep. Zero-point Core 24694 | -3/Protoforge | System corruption reached 10% 24785 | -3/Protoforge | Destroyed 7 combat bots 24853 | -3/Protoforge | Spotted AP7-3 24853 | -3/Protoforge | Spotted AP7-3 24871 | -3/Protoforge | Core integrity fell below 50% 24883 | -3/Protoforge | Destroyed AP7-3 24910 | -3/Protoforge | Destroyed AP7-3 24954 | -3/Protoforge | Found Faulty Cep. Thermoelectric Network 24956 | -3/Protoforge | Found Faulty Cep. Thermoelectric Network 24958 | -3/Protoforge | Found Prototype Device 24959 | -3/Protoforge | Found Prototype Device 24963 | -3/Protoforge | Found Cep. Thermoelectric Network 24967 | -3/Protoforge | Found Prototype Device 24967 | -3/Protoforge | Identified Cep. Cloak Mesh (x3) 24975 | -3/Protoforge | Found Cep. Impact Drone Bay 25089 | -3/Protoforge | Found Transdimensional Reconstructor 25102 | -3/Protoforge | Found Cep. Navigation Harness 25119 | -3/Protoforge | Found Cep. Nanofilaments [Conductive] 25124 | -3/Protoforge | Installed Cep. Nanofilaments [Conductive], 2 resistances modified: TH -15%, EM +25% 25244 | -3/Protoforge | Destroyed 17 combat bots 25319 | -3/Protoforge | Destroyed 9 combat bots 25319 | -3/Protoforge | Destroyed Decapitator 25319 | -3/Protoforge | Destroyed Decapitator 25351 | -3/Protoforge | Found Prototype Protection 25351 | -3/Protoforge | Identified Cep. Core Shell 25356 | -3/Protoforge | Found Exp. Force Field 25382 | -3/Protoforge | Found Exp. Remote Shield 25384 | -3/Protoforge | Found Faulty Exp. Force Field 25415 | -3/Protoforge | Build established: Alien-Construct 25419 | -3/Protoforge | Found Exp. EM Disruption Field 25425 | -3/Protoforge | Spotted V516-n 25430 | -3/Protoforge | Found Cep. Hardlight Director 25442 | -3/Protoforge | Destroyed V516-n 25907 | -3/Protoforge | Found Prototype Hover Unit 26030 | -3/Protoforge | Found Cep. Gyrokinetic System 26090 | -3/Protoforge | Destroyed 8 combat bots 26209 | -3/Protoforge | High security lockdown imminent 26230 | -3/Protoforge | System corruption reached 30% 26242 | -3/Protoforge | Found Prototype Slashing Weapon 26242 | -3/Protoforge | Identified Cep. Deflector Sword 26253 | -3/Protoforge | Found Prototype Slashing Weapon 26253 | -3/Protoforge | Identified Exp. Terror Saw 26289 | -3/Protoforge | High security lockdown engaged 26314 | -3/Protoforge | Garrison activated, responded to threat 26372 | -3/Protoforge | Destroyed 10 combat bots 26383 | -3/Protoforge | Found Cep. EMP Blanket Launcher 26413 | -3/Protoforge | Spotted Investigator 26426 | -3/Protoforge | Destroyed Investigator 26438 | -3/Protoforge | Core integrity fell below 20% 26510 | -3/Protoforge | Destroyed 33 combat bots 26571 | -3/Protoforge | Spotted EXE-6 26572 | -3/Protoforge | Spotted EXE-6 26575 | -3/Protoforge | Destroyed EXE-6 26579 | -3/Protoforge | Destroyed EXE-6 26587 | -3/Protoforge | Found Corrupted Cep. XC Strikerail 26589 | -3/Protoforge | Found Corrupted Cep. XC Strikerail 26610 | -3/Protoforge | Spotted Decapitator 26610 | -3/Protoforge | Spotted Decapitator 26709 | -3/Protoforge | Spotted EXE-6 26709 | -3/Protoforge | Spotted EXE-6 26714 | -3/Protoforge | Destroyed EXE-6 26715 | -3/Protoforge | Destroyed EXE-6 26724 | -3/Protoforge | Found Corrupted Cep. XC Strikerail 26729 | -3/Protoforge | Spotted Hotshot 26729 | -3/Protoforge | Spotted Hotshot 26729 | -3/Protoforge | Spotted Hotshot 26729 | -3/Protoforge | Spotted Hotshot 26734 | -3/Protoforge | Destroyed Hotshot 26735 | -3/Protoforge | Destroyed Hotshot 26738 | -3/Protoforge | Destroyed Hotshot 26777 | -3/Protoforge | Spotted B-86 Titan 26782 | -3/Protoforge | Spotted Hotshot 26782 | -3/Protoforge | Spotted Hotshot 26782 | -3/Protoforge | Spotted Hotshot 26782 | -3/Protoforge | Spotted Hotshot 26782 | -3/Protoforge | Spotted Striker 26783 | -3/Protoforge | Entered Research 26783 | -2/Research | Warlord forces began assault on 0b10 26783 | -2/Research | Evolved 2 slots: Power x2 26784 | -2/Research | Destroyed 7 combat bots 26888 | -2/Research | Met up with Warlord 26893 | -2/Research | Research machine network offline 26960 | -2/Research | High security lockdown imminent 27004 | -2/Research | Discovered new exit (range 15) 27040 | -2/Research | High security lockdown engaged 27072 | -2/Research | Destroyed 7 combat bots 27077 | -2/Research | Build established: Generator-Construct 27210 | -2/Research | Spotted Striker 27220 | -2/Research | Spotted Striker 27225 | -2/Research | Destroyed Striker 27227 | -2/Research | Destroyed Striker 27232 | -2/Research | Spotted Investigator 27232 | -2/Research | Scanned by Researcher 27235 | -2/Research | Destroyed Investigator 27253 | -2/Research | Found Prototype Launcher 27253 | -2/Research | Identified Containment Facilitator 27283 | -2/Research | Destroyed 7 combat bots 27379 | -2/Research | Borebot progress halted 27417 | -2/Research | Borebot progress halted 27433 | -2/Research | Borebot progress halted 27441 | -2/Research | Spotted Striker 27443 | -2/Research | Destroyed Striker 27569 | -2/Research | Spotted Striker 27696 | -2/Research | Entered Access 27696 | -1/Access | Evolved 2 slots: Utility x2 27730 | -1/Access | High security lockdown imminent 27730 | -1/Access | Garrison activated, responded to threat 27773 | -1/Access | P-80 Master assimilated allied 3C-OUB(g) 27801 | -1/Access | Lost 3 allies 27810 | -1/Access | High security lockdown engaged 27817 | -1/Access | Energy Cycler disabled 27929 | -1/Access | System corruption reached 10% 27961 | -1/Access | Spotted Executioner 27961 | -1/Access | Spotted Executioner 27986 | -1/Access | Spotted Striker 27986 | -1/Access | Spotted Striker 28036 | -1/Access | Spotted B-99 Colossus 28044 | -1/Access | Spotted B-99 Colossus 28049 | -1/Access | Discovered new exit (range 4) 28085 | -1/Access | Spotted Executioner 28129 | -1/Access | Entered Command 28148 | -1/Command | Spotted Executioner 28148 | -1/Command | Spotted Executioner 28149 | -1/Command | Destroyed Executioner 28155 | -1/Command | Destroyed Executioner 28183 | -1/Command | Found Prototype Processor 28183 | -1/Command | Identified Exp. Targeting Computer 28187 | -1/Command | Found Exp. Core Analyzer 28347 | -1/Command | Spotted B-99 Colossus 28379 | -1/Command | First assault squad dispatched 28408 | -1/Command | Destroyed 9 combat bots 28465 | -1/Command | High security lockdown imminent 28540 | -1/Command | Spotted Alpha 7 28540 | -1/Command | Spotted Alpha 7 28540 | -1/Command | Spotted Striker 28540 | -1/Command | Spotted Striker 28540 | -1/Command | Spotted Executioner 28540 | -1/Command | Spotted Executioner 28540 | -1/Command | Spotted Executioner 28540 | -1/Command | Spotted Executioner 28540 | -1/Command | Spotted B-99 Colossus 28540 | -1/Command | Spotted B-99 Colossus 28545 | -1/Command | High security lockdown engaged 28549 | -1/Command | Discovered new exit (range 7) 28557 | -1/Command | Used Subatomic Replicator to replicate Cep. Impact Drone Bay 28561 | -1/Command | Allies destroyed Alpha 7 28561 | -1/Command | Allies destroyed Striker 28562 | -1/Command | Allies destroyed Striker 28570 | -1/Command | Allies destroyed Executioner 28572 | -1/Command | Allies destroyed B-99 Colossus 28575 | -1/Command | Allies destroyed Alpha 7 28576 | -1/Command | Allies destroyed Executioner 28599 | -1/Command | Allies destroyed B-99 Colossus 28602 | -1/Command | Allies destroyed Executioner 28632 | -1/Command | Lost 4 parts (1u3w) 28650 | *** | Heading to fleet! Last Messages --------------- 28643_ Impact Drone triggered Stasis Trap. 28643_ Slug penetrates G-73 Enforcer. 28643_ G-73 Enforcer destroyed. 28643_ Slug penetrates G-73 Enforcer. 28643_ Slug penetrates Wall. 28643_ A bubble of rippling energy engulfs the area. 28643_ Field strength at 91. 28643_ Field strength at 82. 28644_ Field strength at 73. 28644_ Slug penetrates Impact Drone. 28644_ Impact Drone destroyed. 28647_ K-01 Serf collects debris. 28647_ Slug penetrates G-73 Enforcer. 28647_ Penetrated by Slug. 28648_ K-01 Serf collects debris. 28649_ M-36 Artificer repairs P-80 Master Unknown Reactor. 28650_ Arm. Scrap Engine constructs Hpw. EM Gamma Construct/G. Map ----- +----------------------------------------------------+ | % #??????????? !%" #????????????????????????????? | | %=*#??????????? " ""#????????????????????????????? | | /######???????? " ????????????????????????????? | | =**= #???????? """"+#???????????????????????????? | | !%* #???????? # ????????????????????????????? | | %= #???????? ? ???????????????????????????? | | * #????????#? ! "???????????????????????????? | | #?????????? ""??????????????????????????? | | """ #?????????? """?????????????????????????? | | """" #?????????? "???????????????????????????? | | """" #?????????? ???????????????????????????? | | """" #?????????? ???????????????????????????? | | #######?????????? ???????????????????????????? | | ?????????????????????????????????????????????????? | | ?????????????????????????????????????????????????? | | ?????????????????????????????????????????????????? | | ???????????????????????????????????????????????? | | ""??????????????????????????????????????????????? | | ""??????????????????###????##???????????????????? | | """??????????????####;#####;###?????????????????? | | """"?????????????# #?????????????????? | | ????########## #?????????????????? | | ?###%=; ;%#%;[ ^ ^^^^ #?????????????????? | | ###"+"##=h^^g^^^^^ =!^= ^ #?????????????????? | | kkimp%^^%^%%^%%^* % ^ #?????????????????? | | bpBB%%%g%^^^^ %!^% "@% ^ ##????????????????? | | gbBB%%b * ^^^ ^%="" ;#????????????????? | | % xg=g^p^ %^% ^%% % ^ ##????????????????? | | ##"#;###^g% ^ %% ^ #?????????????????? | | ##?##??##; ! %%;%!%%^ ^^^^ #?????????????????? | | #???????#######%#%/% % #?????????????????? | | #?????????????###;!% % #?????????????????? | | #???????????????#######;;;#####?????????????????? | | #?????????????????????#####?????????????????????? | | #???????????????????????????????????????????????? | | #???????????????????????????????????????????????? | | #???????????????????????????????????????????????? | | ???????????????????????????????????????????????? | | ??????????????????????????????????????????????? | | ??????????????????????????????????????????????? | | ?????????????????????????????????????????????? | | #????????????????????????????????????????????? | | #????????????????????????????????????????????? | | ????????????????????????????????????????????? | | ????????????????????????????????????????????? | | ????????????????????????????????????????????? | | ????????????????????????????????????????????? | | ??????????????????????????????????????????????? | | ???????????????????????????????????????????????? | | ?????????????????????????????????????????????????? | +----------------------------------------------------+ Best States ------------- Heat Dissipation 104 Coolant Potential 100 Energy Generation 94 Energy Capacity 4406 Matter Stores 300 Matter Capacity 300 Sight Range 23 Terrain Scan Range 20 Terrain Scan Density 1010 Jamming Range 14 Cloak Strength 6 Armor Coverage 800 Resistance: EM 25 Evasion (%) 64 Targeting Accuracy 42 Core Analysis 8 Armor Integrity Analysis 50 Recoil Reduction 7 Matter Filtering 50 Particle Charging 30 Kinecelleration 66 Defensive Hacking 20 Item Schematics ----------------- Imp. Diametric Drive | -3/Protoforge | Archive Exp. Utility Shielding | -3/Protoforge | Archive Exp. Coolant Injector | -3/Protoforge | Archive Exp. Shield Generator | -3/Protoforge | Archive Robot Schematics ------------------ L-61 Swordsman | -3/Protoforge | Archive G-67 Veteran | -3/Protoforge | Archive M-36 Artificer | -3/Protoforge | Archive T-07 Excavator | -3/Protoforge | Archive Y-72 Warden | -3/Protoforge | Archive Fabricated ------------ Nothing Repaired ---------- Nothing Alien Tech Used ----------------- Integrated Dissipator Core Reset Matrix Terrabomb Concept Nanofilaments [Conductive] Subatomic Replicator Achievements -------------- None Challenges ------------ None Game ------ Seed MissileInsulatedStripper Manual? 0 Play Time 04:07:41 Cumulative 1000.9 hours Start 2025.06.06 @ 16:51:47 End 2025.06.06 @ 21:22:49 Sessions 1 Manual Loads 0 Difficulty Rogue Special Mode None Game No. 598 Rogue 591 Adventurer 0 Explorer 7 Win Type 2 Total 67 Types 23/6/26/2/0/1/6/1/2/0 Lore% 92 Gallery% 93 Achievement% 85 Wizard Run 0 Options --------- Layout 1 ASCII 0 Keyboard 0 Movement Mouse Keybinds 0 Fullscreen 2 Font 24/Smallcaps Map View 50x35 Zoom Use 0% Tactical HUD 1 Map Filters NONE Filters NONE Steam 1 RUN: 8dbb68ee-154c-4815-a855-3c9c5378212d